{"text_format":"3","workbook":"xlsx","n_sheets":7,"sheets":["説明","作成例１","作成例２","作成例３","作成例４","作成例５","作成例６"],"not_rendered":{"defined_names":7},"read":"whole","date_system":"1900"}

{"sheet":"説明","index":0,"n_rows":116,"n_cols":17,"rows_kept":116,"merged":[[0,0,0,21],[2,0,3,21],[6,1,11,20],[12,1,13,20],[14,1,14,4],[14,5,14,20],[15,1,22,4],[15,5,22,20],[23,1,32,4],[23,5,32,20],[33,1,37,20],[40,1,44,20],[46,0,49,21],[50,1,56,20],[57,1,58,20],[59,1,61,20],[62,1,63,20],[64,1,67,20],[68,0,69,21],[70,1,74,20],[75,1,76,13],[75,16,76,20],[77,15,77,21],[79,1,80,13],[79,16,80,20],[81,15,81,21],[83,1,84,13],[83,16,84,20],[85,15,85,21],[87,1,88,13],[90,0,91,21],[92,1,98,20],[99,1,100,13],[99,16,100,20],[101,15,101,21],[103,1,104,13],[103,16,104,20],[105,15,105,21],[107,1,108,13],[107,16,108,20],[109,15,109,21],[111,1,112,13],[111,16,112,20],[113,15,113,21],[115,1,116,13]]}
["導入する機械等の能力・規模が適正であることを示す資料の作成例について"]
[]
["1．導入する機械等の能力・規模が適正であることは、どのように示せばよいか。（QAⅡ-C-a2より）"]
[]
[]
["（１）導入しようとする機械等について"]
[null,"　国内資源由来肥料の散布に必要な機械等を導入しようとする場合、当該機械等の能力・規模が適正か否かは、次の算式により「機械等の利用効率」を算出して示してください。 \n　なお、肥料製造に必要な機械や分析機器等を導入しようとする場合には、下記の算式等を踏まえ、導入する機械の性質に応じた適切な方法により、導入する機械等の能力・規模が適正であることを示してください。"]
[]
[]
[]
[]
[]
[null,"機械等の利用効率（％）＝｛成果目標面積（ha）／負担可能面積（ha）｝×100"]
[]
[null,"用語",{"$nulls":3},"意味"]
[null,"成果目標面積",{"$nulls":3},"　実施要領別紙１－２の第５に基づき事業実施主体が設定する成果目標の目標年度における国内資源由来肥料の施用面積とします。 \n\n　ただし、中心的な取組主体が導入する場合にあっては、当該中心的な取組主体の取組に相当する施用面積とします。 \n（例えば、事業実施主体の成果目標が 100ha であっても、機械等を導入する中心的な取組主体が取り組む面積が 50ha であれば、50ha とします。）"]
{"$rows_empty":7}
[null,"負担可能面積",{"$nulls":3},"　導入する機械等が、作業適期内に作業することにより、国内資源由来肥料の施用が可能となる面積とし、次の算式により算出してください。\n\n負担可能面積（ha）＝機械等の作業能力（ha/時）\n　　　　　　　　　　　　　　×作業可能時間（時/日）×作業可能日数（日）\n\n　なお、機械等の作業能力（ha/時）は、導入する機械等の特性を勘案しながら、合理的な算定方法を用いて、時間当たりの国内資源由来肥料の施用面積に換算してください。"]
{"$rows_empty":9}
[null,"　「機械等の利用効率」は、大きすぎると成果目標に対して機械等の能力・規模が不足しているため、成果目標の達成が不可能（あるいは成果目標の設定が過大）となり、小さすぎると成果目標に対して過大な機械導入となります。いずれも事業費が適正に算定されていない計画は不採択となってしまうため、「機械等の利用効率」が概ね 100％となるような機械等を導入する計画としてください。"]
[]
[]
[]
[]
[]
["（２）既に所有している同種の機械等について"]
[null,"　機械等の導入目的に活用可能であって、既に所有している同種の機械等（以下「所有機」という。）がある場合には、所有機のみでは成果目標が達成できないことを確認するため、①所有機のみによる「機械等の利用効率」が 100％を超えることを示す根拠又は②能力・規模が適正な所有機であっても、作業適期内に利用することができない合理的な根拠を示してください。"]
[]
[]
[]
[]
[]
["２．負担可能面積の算出に用いる「機械等の作業能力（ha/時）は、導入する機械等の特性を勘案\n　　しながら、合理的な算定方法を用いる」とあるが、具体的にはどのように算出するのか。\n　　（QAⅡ-C-a3より）"]
[]
[]
[]
[null,"　機械等の作業能力（ha/時）は、機械等の種類に応じた特性を勘案しながら検討していく必要があります。\n　例えば、肥料散布機の場合、1 時間あたりに何 ha 散布できるかは、散布機の作業幅（m）や散布機を稼働させる作業速度（km/時）によって左右されるため、カタログ等に掲載されている能力を参考にした作業幅と、ほ場や作物等の条件、オペレーターの技術水準等を踏まえた標準的な作業速度を用い、理論的な作業能力を算出してください。"]
[]
[]
[]
[]
[]
[]
[null,"理論作業量（ha/時）＝作業幅（m）×作業速度（km/時）÷10"]
[]
[null,"　その上で、ほ場内での機械の旋回や移動時間、肥料の補給時間等の実際に稼働していない時間を考慮するため、ほ場作業効率（％）を乗じて、機械等の作業能力を算出してください。"]
[]
[]
[null,"機械等の作業能力（ha/時）＝理論作業量（ha/時）×ほ場作業効率（％）"]
[]
[null,"　また、肥料散布機以外の収集・運搬・加工・分析に係る機械等にあっても、当該機械等の導入によって想定される肥料の取扱量や標準的な施用量等を勘案のうえ、機械等の作業能力を時間当たり面積（ha/時）に換算してください。"]
[]
[]
[]
["３．肥料散布機を導入する場合の能力・規模が適正であることを示す資料の作成例"]
[]
[null,"　上記１及び２を参考に、機械等の作業能力（ha/時）、作業可能時間（時/日）、作業可能日数（日）を算出し、機械等の利用効率（％）が概ね100％であることを示してください。\n　なお、所有機がある場合には、当該所有機の能力・規模や稼働の状況に応じて、所有機のみでは成果目標が達成できないことを示してください。具体的な資料の作成例は、以下を参照してください。"]
[]
[]
[]
[]
[null,"本事業で対象とする国内資源由来肥料の散布に適した肥料散布機を既に所有していますか？",{"$nulls":14},"作成例１へ"]
[]
[{"$nulls":15},"導入機の能力・規模を整理"]
[]
[null,"既に所有している肥料散布機は、本事業で対象とする国内資源由来肥料の散布時期に活用できますか？",{"$nulls":14},"作成例２へ"]
[]
[{"$nulls":15},"導入機と所有機の能力・規模を整理"]
[]
[null,"既に所有している肥料散布機を活用すれば、成果目標面積を全て散布することができますか？",{"$nulls":14},"作成例３へ"]
[]
[{"$nulls":15},"導入機と所有機の能力・規模を整理"]
[]
[null,"肥料散布機の導入に対する補助不可"]
[]
[]
["４．肥料散布機と一体的にトラクタを導入する場合の能力・規模が適正であることを示す資料の作成例"]
[]
[null,"　上記１及び２を参考に、機械等の作業能力（ha/時）、作業可能時間（時/日）、作業可能日数（日）を算出し、機械等の利用効率（％）が概ね100％であることを示してください。\n　なお、所有機がある場合には、当該所有機の能力・規模や稼働の状況に応じて、所有機のみでは成果目標が達成できないことを示してください。\n　また、トラクタの導入に対する補助の可否を判断する前提として、一体的に導入する肥料散布機の能力・規模が適正でなければなりません。具体的な資料の作成例は、以下を参照してください。"]
[]
[]
[]
[]
[]
[]
[null,"一体的に導入する肥料散布機の能力・規模が適正ですか？（上記３を参考に整理）",{"$nulls":14},"トラクタの導入に対する補助不可"]
[]
[]
[]
[null,"導入しようとする肥料散布機をけん引可能なトラクタを既に所有していますか？",{"$nulls":14},"作成例４へ"]
[]
[{"$nulls":15},"導入機の能力・規模を整理"]
[]
[null,"既に所有しているトラクタは、本事業で対象とする国内資源由来肥料の散布時期に活用できますか？",{"$nulls":14},"作成例５へ"]
[]
[{"$nulls":15},"導入機と所有機の能力・規模を整理"]
[]
[null,"既に所有しているトラクタを活用すれば、成果目標面積を全て散布することができますか？",{"$nulls":14},"作成例６へ"]
[]
[{"$nulls":15},"導入機と所有機の能力・規模を整理"]
[]
[null,"トラクタの導入に対する補助不可"]

{"sheet":"作成例１","index":1,"n_rows":45,"n_cols":7,"rows_kept":45,"merged":[[6,4,6,5],[7,4,7,5],[8,4,8,6],[32,4,32,5]]}
["機械能力・規模決定根拠"]
[]
["１．基本情報"]
[]
[null,null,"項目",null,"値","単位","説明"]
[null,null,"整理番号",null,{"v":1,"d":"1 "},"番","事業実施計画書別紙5の（15）欄で付した整理番号を記入。"]
[null,null,"機械導入者名",null,"B山C太郎",null,"事業実施計画書別紙5の（１）欄で整理した機械導入者名を記入。"]
[null,null,"導入しようとする機械種類",null,"肥料散布機",null,"事業実施計画書別紙5の（９）欄で整理した機械種類を記入。"]
[null,null,"導入を想定している機械のメーカー・品名・型式等",null,"○○社・○○○○・XXX-XX-XXX"]
[null,null,"既に所有している同種機械の台数",null,{"v":0,"d":"0 "},"台"]
[]
["２．成果目標面積"]
[]
[null,null,"項目",null,"値","単位","説明"]
[null,null,"成果目標の目標年度における国内資源由来肥料の施用面積","（１）",{"v":80,"d":"80.0"},"ha","事業実施計画書第１の５（２）の目標値に記載した施用面積を記入。"]
[]
["３．導入機の負担可能面積"]
[]
[null,"１）機械等の作業能力"]
[null,null,"項目",null,"値","単位","説明"]
[null,null,"作業幅","（２）",{"v":4,"d":"4.00"},"m","カタログ等を基に散布機の散布幅を記入。なお、根拠資料を添付する。"]
[null,null,"作業速度","（３）",{"v":5,"d":"5.00"},"km/時","ほ場や作物等の条件、オペレーターの技術水準等を踏まえ、散布機の作業速度を記入。なお、算出過程を示した資料を添付する。"]
[null,null,"理論作業量","（４）",{"$f":"E21*E22/10","v":{"v":2,"d":"2.00"}},"ha/時","（２）×（３）÷10"]
[null,null,"ほ場作業効率","（５）",{"v":65,"d":"65.00"},"％","ほ場内の作業時間に対する機械の稼働時間の割合（ほ場内の作業時間から旋回や燃料補給等、ほ場内で発生するロス時間を除いた割合）を記入。なお、根拠資料として、○○を添付する。"]
[null,null,"機械等の作業能力","（６）",{"$f":"E23*E24/100","v":{"v":1.3,"d":"1.30"}},"ha/時","（４）×（５）"]
[null,"２）作業可能時間"]
[null,null,"項目",null,"値","単位","説明"]
[null,null,"1日当たりの作業時間","（７）",{"v":7,"d":"7.00"},"時/日","算定方法を添付する。"]
[null,null,"実作業率","（８）",{"v":55,"d":"55.00"},"%","１日当たり作業時間に対するほ場内作業時間の割合（１日当たりの作業時間から機械の装着や調整に係る時間、ほ場への移動時間等のほ場外作業時間を除いた割合）を記入。なお、根拠資料として、○○を添付する。"]
[null,null,"作業可能時間","（９）",{"$f":"E28*E29/100","v":3.85},"時/日","（７）×（８）"]
[null,"３）作業可能日数"]
[null,null,"項目",null,"値","単位","説明"]
[null,null,"作業可能期間","（10）","11/1 ～11/22",null,"導入しようとする肥料散布機による作業可能期間を記入。"]
[null,null,"作業日数","（11）",{"v":22,"d":"22 "},"日","（10）欄の作業可能期間のうち作業ができない日を除いた、実際に作業可能な日数を記入。"]
[null,null,"作業可能日数率","（12）",{"v":70,"d":"70.00"},"％","（11）欄の作業日数に対し、雨天等の影響で国内資源由来肥料等の散布ができない日の割合を記入。"]
[null,null,"作業可能日数","（13）",{"$f":"E34*E35/100","v":{"v":15.4,"d":"15.40"}},"日","（11）×（12）"]
[null,"４）導入機の負担可能面積（＝機械等の作業能力×作業可能時間×作業可能日数）"]
[null,null,"項目",null,"値","単位","説明"]
[null,null,"作業回数","（14）",{"v":1,"d":"1 "},"回"]
[null,null,"導入機の負担可能面積","（15）",{"$f":"E25*E30*E36/E39","v":{"v":77.077,"d":"77.08"}},"ha","（６）×（９）×（13）÷（14）"]
[]
["５．機械等の利用効率（＝｛成果目標面積（ha）／負担可能面積（ha）｝×100）"]
[]
[null,null,"項目",null,"値","単位","説明"]
[null,null,"導入機による機械等の利用効率","（16）",{"$f":"E15/E40*100","v":{"v":103.79231158451938,"d":"103.8"}},"％","（１）÷（15）×100\n機械等の利用効率は概ね100％となり、適正な能力・規模の機械を導入しようとしている。"]

{"sheet":"作成例２","index":2,"n_rows":78,"n_cols":7,"rows_kept":78,"merged":[[6,4,6,5],[7,4,7,5],[8,4,8,6],[35,4,35,5],[48,4,48,6],[49,4,49,6],[64,4,64,5]]}
["機械能力・規模決定根拠"]
[]
["１．基本情報"]
[]
[null,null,"項目",null,"値","単位","説明"]
[null,null,"整理番号",null,{"v":1,"d":"1 "},"番","事業実施計画書別紙5の（15）欄で付した整理番号を記入。"]
[null,null,"機械導入者名",null,"B山C太郎",null,"事業実施計画書別紙5の（１）欄で整理した機械導入者名を記入。"]
[null,null,"導入しようとする機械種類",null,"肥料散布機",null,"事業実施計画書別紙5の（９）欄で整理した機械種類を記入。"]
[null,null,"導入を想定している機械のメーカー・品名・型式等",null,"○○社・○○○○・XXX-XX-XXX"]
[null,null,"既に所有している同種機械の台数",null,{"v":1,"d":"1 "},"台","肥料散布機１台"]
[]
["２．成果目標面積"]
[]
[null,null,"項目",null,"値","単位","説明"]
[null,null,"成果目標の目標年度における国内資源由来肥料の施用面積","（１）",{"v":80,"d":"80.0"},"ha","事業実施計画書第１の５（２）の目標値に記載した施用面積を記入。"]
[null,null,"上記面積のうち既存所有機で国内資源由来肥料を施用する面積","（２）",{"v":0,"d":"0.0"},"ha","国内資源由来肥料の散布可能期間と化学肥料の散布可能期間が重複しており、既存所有機を用いて国内資源由来肥料の散布ができない。"]
[null,null,"導入機で国内資源由来肥料を施用する面積","（３）",{"$f":"E15-E16","v":{"v":80,"d":"80.0"}},"ha","（１）ー（２）"]
[null,null,"既存所有機で作業する面積（国内資源由来肥料の散布以外の作業）","（４）",{"v":55,"d":"55.0"},"ha","国内資源由来肥料の散布期間中に、既存所有機により化学肥料の散布をしなければならない面積"]
[]
["３．導入機の負担可能面積"]
[]
[null,"１）機械等の作業能力"]
[null,null,"項目",null,"値","単位","説明"]
[null,null,"作業幅","（５）",{"v":9,"d":"9.00"},"m","カタログ等を基に散布機の散布幅を記入。なお、根拠資料を添付する。"]
[null,null,"作業速度","（６）",{"v":4,"d":"4.00"},"km/時","ほ場や作物等の条件、オペレーターの技術水準等を踏まえ、散布機の作業速度を記入。なお、算出過程を示した資料を添付する。"]
[null,null,"理論作業量","（７）",{"$f":"E24*E25/10","v":{"v":3.6,"d":"3.60"}},"ha/時","（５）×（６）÷10"]
[null,null,"ほ場作業効率","（８）",{"v":55,"d":"55.00"},"％","ほ場内の作業時間に対する機械の稼働時間の割合（ほ場内の作業時間から旋回や燃料補給等、ほ場内で発生するロス時間を除いた割合）を記入。なお、根拠資料として、○○を添付する。"]
[null,null,"機械等の作業能力","（９）",{"$f":"E26*E27/100","v":1.98},"ha/時","（７）×（８）"]
[null,"２）作業可能時間"]
[null,null,"項目",null,"値","単位","説明"]
[null,null,"1日当たりの作業時間","（10）",{"v":5,"d":"5.00"},"時/日","算定方法を添付する。"]
[null,null,"実作業率","（11）",{"v":55,"d":"55.00"},"%","１日当たり作業時間に対するほ場内作業時間の割合（１日当たりの作業時間から機械の装着や調整に係る時間、ほ場への移動時間等のほ場外作業時間を除いた割合）を記入。なお、根拠資料として、○○を添付する。"]
[null,null,"作業可能時間","（12）",{"$f":"E31*E32/100","v":2.75},"時/日","（10）×（11）"]
[null,"３）作業可能日数"]
[null,null,"項目",null,"値","単位","説明"]
[null,null,"作業可能期間","（13）","4/1～4/21",null,"導入しようとする肥料散布機による作業可能期間を記入。"]
[null,null,"作業日数","（14）",{"v":21,"d":"21 "},"日","（13）欄の作業可能期間のうち作業ができない日を除いた、実際に作業可能な日数を記入。"]
[null,null,"作業可能日数率","（15）",{"v":70,"d":"70.00"},"％","（14）欄の作業日数に対し、雨天等の影響で国内資源由来肥料等の散布ができない日の割合を記入。"]
[null,null,"作業可能日数","（16）",{"$f":"E37*E38/100","v":{"v":14.7,"d":"14.70"}},"日","（14）×（15）"]
[null,"４）導入機の負担可能面積（＝機械等の作業能力×作業可能時間×作業可能日数）"]
[null,null,"項目",null,"値","単位","説明"]
[null,null,"作業回数","（17）",{"v":1,"d":"1 "},"回"]
[null,null,"導入機の負担可能面積","（18）",{"$f":"E28*E33*E39/E42","v":{"v":80.0415,"d":"80.04"}},"ha","（９）×（12）×（16）÷（17）"]
[]
["４．既存所有機の負担可能面積"]
[]
[null,"既に所有している機械の基本情報"]
[null,null,"項目",null,"値","単位","説明"]
[null,null,"既に所有している機械のメーカー・品名・型式等",null,"○○社・○○○○・XXX-XX-XXX"]
[null,null,"用途",null,"化学肥料の散布"]
[null,"１）機械等の作業能力"]
[null,null,"項目",null,"値","単位","説明"]
[null,null,"作業幅","（19）",{"v":8,"d":"8.00"},"m","カタログ等を基に散布機の散布幅を記入。なお、根拠資料を添付する。"]
[null,null,"作業速度","（20）",{"v":3,"d":"3.00"},"km/時","ほ場や作物等の条件、オペレーターの技術水準等を踏まえ、散布機の作業速度を記入。なお、算出過程を示した資料を添付する。"]
[null,null,"理論作業量","（21）",{"$f":"E53*E54/10","v":{"v":2.4,"d":"2.40"}},"ha/時","（19）×（20）÷10"]
[null,null,"ほ場作業効率","（22）",{"v":55,"d":"55.00"},"％","ほ場内の作業時間に対する機械の稼働時間の割合（ほ場内の作業時間から旋回や燃料補給等、ほ場内で発生するロス時間を除いた割合）を記入。なお、根拠資料として、○○を添付する。"]
[null,null,"機械等の作業能力","（23）",{"$f":"E55*E56/100","v":1.32},"ha/時","（21）×（22）"]
[null,"２）作業可能時間"]
[null,null,"項目",null,"値","単位","説明"]
[null,null,"1日当たりの作業時間","（24）",{"v":5,"d":"5.00"},"時/日","算定方法を添付する。"]
[null,null,"実作業率","（25）",{"v":55,"d":"55.00"},"%","１日当たり作業時間に対するほ場内作業時間の割合（１日当たりの作業時間から機械の装着や調整に係る時間、ほ場への移動時間等のほ場外作業時間を除いた割合）を記入。なお、根拠資料として、○○を添付する。"]
[null,null,"作業可能時間","（26）",{"$f":"E60*E61/100","v":2.75},"時/日","（24）×（25）"]
[null,"３）作業可能日数"]
[null,null,"項目",null,"値","単位","説明"]
[null,null,"作業可能期間","（27）","4/1～4/21",null,"既に所有している肥料散布機による化学肥料の散布期間を記入。"]
[null,null,"作業日数","（28）",{"v":21,"d":"21 "},"日","（27）欄の作業可能期間のうち作業ができない日を除いた、実際に作業可能な日数を記入。"]
[null,null,"作業可能日数率","（29）",{"v":70,"d":"70.00"},"％","（28）欄の作業日数に対し、雨天等の影響で国内資源由来肥料等の散布ができない日の割合を記入。"]
[null,null,"作業可能日数","（30）",{"$f":"E66*E67/100","v":{"v":14.7,"d":"14.70"}},"日","（28）×（29）"]
[null,"４）既存所有機の負担可能面積（＝機械等の作業能力×作業可能時間×作業可能日数）"]
[null,null,"項目",null,"値","単位","説明"]
[null,null,"作業回数","（31）",{"v":1,"d":"1 "},"回"]
[null,null,"既存所有機の負担可能面積","（32）",{"$f":"E57*E62*E68/E71","v":{"v":53.361000000000004,"d":"53.36"}},"ha","（23）×（26）×（30）÷（31）"]
[]
["５．機械等の利用効率（＝｛成果目標面積（ha）／負担可能面積（ha）｝×100）"]
[]
[null,null,"項目",null,"値","単位","説明"]
[null,null,"導入機による機械等の利用効率","（33）",{"$f":"E17/E43*100","v":{"v":99.94815189620384,"d":"99.9"}},"％","（３）÷（18）×100\n機械等の利用効率は概ね100％となり、適正な能力・規模の機械を導入しようとしている。"]
[null,null,"既存所有機を化学肥料の散布に供した時の機械等の利用効率","（34）",{"$f":"E18/E72*100","v":{"v":103.07153164296021,"d":"103.1"}},"％","（４）÷（32）×100\n化学肥料の散布における機械等の利用効率は概ね100％となり、既存所有機を国内資源由来肥料の散布に活用することができない。"]

{"sheet":"作成例３","index":3,"n_rows":107,"n_cols":7,"rows_kept":107,"merged":[[6,4,6,5],[7,4,7,5],[8,4,8,6],[35,4,35,5],[48,4,48,6],[49,4,49,6],[67,4,67,5],[92,4,92,5]]}
["機械能力・規模決定根拠"]
[]
["１．基本情報"]
[]
[null,null,"項目",null,"値","単位","説明"]
[null,null,"整理番号",null,{"v":1,"d":"1 "},"番","事業実施計画書別紙5の（15）欄で付した整理番号を記入。"]
[null,null,"機械導入者名",null,"B山C太郎",null,"事業実施計画書別紙5の（１）欄で整理した機械導入者名を記入。"]
[null,null,"導入しようとする機械種類",null,"肥料散布機",null,"事業実施計画書別紙5の（９）欄で整理した機械種類を記入。"]
[null,null,"導入を想定している機械のメーカー・品名・型式等",null,"○○社・○○○○・XXX-XX-XXX"]
[null,null,"既に所有している同種機械の台数",null,{"v":1,"d":"1 "},"台","肥料散布機１台"]
[]
["２．成果目標面積"]
[]
[null,null,"項目",null,"値","単位","説明"]
[null,null,"成果目標の目標年度における国内資源由来肥料の施用面積","（１）",{"v":70,"d":"70.0"},"ha","事業実施計画書第１の５（２）の目標値に記載した施用面積を記入。"]
[null,null,"上記面積のうち既存所有機で国内資源由来肥料を施用する面積","（２）",{"$f":"E75","v":{"v":10.005187500000002,"d":"10.0"}},"ha","（32）"]
[null,null,"導入機で国内資源由来肥料を施用する面積","（３）",{"$f":"E15-E16","v":{"v":59.994812499999995,"d":"60.0"}},"ha","（１）ー（２）"]
[null,null,"既存所有機で作業する面積（国内資源由来肥料の散布以外の作業）","（４）",{"v":10,"d":"10.0"},"ha","国内資源由来肥料の散布期間中に、既存所有機により化学肥料を散布しなければならない面積"]
[]
["３．導入機の負担可能面積"]
[]
[null,"１）機械等の作業能力"]
[null,null,"項目",null,"値","単位","説明"]
[null,null,"作業幅","（５）",{"v":8,"d":"8.00"},"m","カタログ等を基に散布機の散布幅を記入。なお、根拠資料を添付する。"]
[null,null,"作業速度","（６）",{"v":3.5,"d":"3.50"},"km/時","ほ場や作物等の条件、オペレーターの技術水準等を踏まえ、散布機の作業速度を記入。なお、算出過程を示した資料を添付する。"]
[null,null,"理論作業量","（７）",{"$f":"E24*E25/10","v":{"v":2.8,"d":"2.80"}},"ha/時","（５）×（６）÷10"]
[null,null,"ほ場作業効率","（８）",{"v":55,"d":"55.00"},"％","ほ場内の作業時間に対する機械の稼働時間の割合（ほ場内の作業時間から旋回や燃料補給等、ほ場内で発生するロス時間を除いた割合）を記入。なお、根拠資料として、○○を添付する。"]
[null,null,"機械等の作業能力","（９）",{"$f":"E26*E27/100","v":1.54},"ha/時","（７）×（８）"]
[null,"２）作業可能時間"]
[null,null,"項目",null,"値","単位","説明"]
[null,null,"1日当たりの作業時間","（10）",{"v":5,"d":"5.00"},"時/日","算定方法を添付する。"]
[null,null,"実作業率","（11）",{"v":55,"d":"55.00"},"%","１日当たり作業時間に対するほ場内作業時間の割合（１日当たりの作業時間から機械の装着や調整に係る時間、ほ場への移動時間等のほ場外作業時間を除いた割合）を記入。なお、根拠資料として、○○を添付する。"]
[null,null,"作業可能時間","（12）",{"$f":"E31*E32/100","v":2.75},"時/日","（10）×（11）"]
[null,"３）作業可能日数"]
[null,null,"項目",null,"値","単位","説明"]
[null,null,"作業可能期間","（13）","4/1～4/20",null,"導入しようとする肥料散布機による作業可能期間を記入。"]
[null,null,"作業日数","（14）",{"v":20,"d":"20 "},"日","（13）欄の作業可能期間のうち作業ができない日を除いた、実際に作業可能な日数を記入。"]
[null,null,"作業可能日数率","（15）",{"v":70,"d":"70.00"},"％","（14）欄の作業日数に対し、雨天等の影響で国内資源由来肥料等の散布ができない日の割合を記入。"]
[null,null,"作業可能日数","（16）",{"$f":"E37*E38/100","v":{"v":14,"d":"14.00"}},"日","（14）×（15）"]
[null,"４）導入機の負担可能面積（＝機械等の作業能力×作業可能時間×作業可能日数）"]
[null,null,"項目",null,"値","単位","説明"]
[null,null,"作業回数","（17）",{"v":1,"d":"1 "},"回"]
[null,null,"導入機の負担可能面積","（18）",{"$f":"E28*E33*E39/E42","v":{"v":59.290000000000006,"d":"59.29"}},"ha","（９）×（12）×（16）÷（17）"]
[]
["４．既存所有機の負担可能面積"]
[]
[null,"既に所有している機械の基本情報"]
[null,null,"項目",null,"値","単位","説明"]
[null,null,"既に所有している機械のメーカー・品名・型式等",null,"○○社・○○○○・XXX-XX-XXX"]
[null,null,"用途",null,"①国内資源由来肥料の散布、②化学肥料の散布"]
[]
[null,"用途①　国内資源由来肥料の散布"]
[]
[null,"１ー①）機械等の作業能力"]
[null,null,"項目",null,"値","単位","説明"]
[null,null,"作業幅","（19）",{"v":4.5,"d":"4.50"},"m","カタログ等を基に散布機の散布幅を記入。なお、根拠資料を添付する。"]
[null,null,"作業速度","（20）",{"v":2.1,"d":"2.10"},"km/時","ほ場や作物等の条件、オペレーターの技術水準等を踏まえ、散布機の作業速度を記入。なお、算出過程を示した資料を添付する。"]
[null,null,"理論作業量","（21）",{"$f":"E56*E57/10","v":{"v":0.9450000000000001,"d":"0.95"}},"ha/時","（19）×（20）÷10"]
[null,null,"ほ場作業効率","（22）",{"v":55,"d":"55.00"},"％","ほ場内の作業時間に対する機械の稼働時間の割合（ほ場内の作業時間から旋回や燃料補給等、ほ場内で発生するロス時間を除いた割合）を記入。なお、根拠資料として、○○を添付する。"]
[null,null,"機械等の作業能力","（23）",{"$f":"E58*E59/100","v":{"v":0.51975,"d":"0.52"}},"ha/時","（21）×（22）"]
[null,"２ー①）作業可能時間"]
[null,null,"項目",null,"値","単位","説明"]
[null,null,"1日当たりの作業時間","（24）",{"v":5,"d":"5.00"},"時/日","算定方法を添付する。"]
[null,null,"実作業率","（25）",{"v":55,"d":"55.00"},"%","１日当たり作業時間に対するほ場内作業時間の割合（１日当たりの作業時間から機械の装着や調整に係る時間、ほ場への移動時間等のほ場外作業時間を除いた割合）を記入。なお、根拠資料として、○○を添付する。"]
[null,null,"作業可能時間","（26）",{"$f":"E63*E64/100","v":2.75},"時/日","（24）×（25）"]
[null,"３ー①）作業可能日数"]
[null,null,"項目",null,"値","単位","説明"]
[null,null,"作業可能期間","（27）","4/1～4/10",null,"作業日数20日のうち、10日は国内資源由来肥料の散布。"]
[null,null,"作業日数","（28）",{"v":10,"d":"10 "},"日","（27）欄の作業可能期間のうち作業ができない日を除いた、実際に作業可能な日数を記入。\n"]
[null,null,"作業可能日数率","（29）",{"v":70,"d":"70.00"},"％","（28）欄の作業日数に対し、雨天等の影響で国内資源由来肥料等の散布ができない日の割合を記入。"]
[null,null,"作業可能日数","（30）",{"$f":"E69*E70/100","v":{"v":7,"d":"7.00"}},"日","（28）×（29）"]
[null,"４ー①）既存所有機の負担可能面積（＝機械等の作業能力×作業可能時間×作業可能日数）"]
[null,null,"項目",null,"値","単位","説明"]
[null,null,"作業回数","（31）",{"v":1,"d":"1 "},"回"]
[null,null,"既存所有機の負担可能面積","（32）",{"$f":"E60*E65*E71/E74","v":{"v":10.005187500000002,"d":"10.01"}},"ha","（23）×（26）×（30）÷（31）"]
[]
[null,"用途②　化学肥料の散布"]
[]
[null,"１ー②）機械等の作業能力"]
[null,null,"項目",null,"値","単位","説明"]
[null,null,"作業幅","（33）",{"v":4.5,"d":"4.50"},"m","カタログ等を基に散布機の散布幅を記入。なお、根拠資料を添付する。"]
[null,null,"作業速度","（34）",{"v":2.1,"d":"2.10"},"km/時","ほ場や作物等の条件、オペレーターの技術水準等を踏まえ、散布機の作業速度を記入。なお、算出過程を示した資料を添付する。"]
[null,null,"理論作業量","（35）",{"$f":"E81*E82/10","v":{"v":0.9450000000000001,"d":"0.95"}},"ha/時","（33）×（34）÷10"]
[null,null,"ほ場作業効率","（36）",{"v":55,"d":"55.00"},"％","ほ場内の作業時間に対する機械の稼働時間の割合（ほ場内の作業時間から旋回や燃料補給等、ほ場内で発生するロス時間を除いた割合）を記入。なお、根拠資料として、○○を添付する。"]
[null,null,"機械等の作業能力","（37）",{"$f":"E83*E84/100","v":{"v":0.51975,"d":"0.52"}},"ha/時","（35）×（36）"]
[null,"２ー②）作業可能時間"]
[null,null,"項目",null,"値","単位","説明"]
[null,null,"1日当たりの作業時間","（38）",{"v":5,"d":"5.00"},"時/日","算定方法を添付する。"]
[null,null,"実作業率","（39）",{"v":55,"d":"55.00"},"%","１日当たり作業時間に対するほ場内作業時間の割合（１日当たりの作業時間から機械の装着や調整に係る時間、ほ場への移動時間等のほ場外作業時間を除いた割合）を記入。なお、根拠資料として、○○を添付する。"]
[null,null,"作業可能時間","（40）",{"$f":"E88*E89/100","v":2.75},"時/日","（38）×（39）"]
[null,"３ー②）作業可能日数"]
[null,null,"項目",null,"値","単位","説明"]
[null,null,"作業可能期間","（41）","4/11～4/20",null,"作業日数20日のうち、10日はキャベツの化学肥料の散布。"]
[null,null,"作業日数","（42）",{"v":10,"d":"10 "},"日","（41）欄の作業可能期間のうち作業ができない日を除いた、実際に作業可能な日数を記入。"]
[null,null,"作業可能日数率","（43）",{"v":70,"d":"70.00"},"％","（42）欄の作業日数に対し、雨天等の影響で国内資源由来肥料等の散布ができない日の割合を記入。"]
[null,null,"作業可能日数","（44）",{"$f":"E94*E95/100","v":{"v":7,"d":"7.00"}},"日","（42）×（43）"]
[null,"４ー②）既存所有機の負担可能面積（＝機械等の作業能力×作業可能時間×作業可能日数）"]
[null,null,"項目",null,"値","単位","説明"]
[null,null,"作業回数","（45）",{"v":1,"d":"1 "},"回"]
[null,null,"既存所有機の負担可能面積","（46）",{"$f":"E85*E90*E96/E99","v":{"v":10.005187500000002,"d":"10.01"}},"ha","（37）×（40）×（44）÷（45）"]
[]
["５．機械等の利用効率（＝｛成果目標面積（ha）／負担可能面積（ha）｝×100）"]
[]
[null,null,"項目",null,"値","単位","説明"]
[null,null,"既存所有機を国内資源由来肥料の散布に供した時の機械等の利用効率","（47）",{"$f":"E15/E16*100","v":{"v":699.6370632734269,"d":"699.6"}},"％","（１）÷（２）×100\n機械等の利用効率は100％を大きく上回ることから、既存所有機を活用しても、成果目標面積全てを散布することができない。"]
[null,null,"導入機による機械等の利用効率","（48）",{"$f":"E17/E43*100","v":{"v":101.18875442739078,"d":"101.2"}},"％","（３）÷（18）×100\n機械等の利用効率は概ね100％となり、適正な能力・規模の機械を導入しようとしている。"]
[null,null,"既存所有機を化学肥料の散布に供した時の機械等の利用効率","（49）",{"$f":"E18/E100*100","v":{"v":99.94815189620383,"d":"99.9"}},"％","（４）÷（46）×100\n化学肥料の散布における機械等の利用効率は概ね100％となり、国内資源由来肥料の散布期間20日のうち、10日は既存所有機を国内資源由来肥料の散布に活用することができない。"]

{"sheet":"作成例４","index":4,"n_rows":45,"n_cols":7,"rows_kept":45,"merged":[[6,4,6,5],[7,4,7,5],[8,4,8,6],[32,4,32,5]]}
["機械能力・規模決定根拠"]
[]
["１．基本情報"]
[]
[null,null,"項目",null,"値","単位","説明"]
[null,null,"整理番号",null,{"v":2,"d":"2 "},"番","事業実施計画書別紙5の（15）欄で付した整理番号を記入。"]
[null,null,"機械導入者名",null,"B山C太郎",null,"事業実施計画書別紙5の（１）欄で整理した機械導入者名を記入。"]
[null,null,"導入しようとする機械種類",null,"トラクタ",null,"事業実施計画書別紙5の（９）欄で整理した機械種類を記入。"]
[null,null,"導入を想定している機械のメーカー・品名・型式等",null,"トラクタ：○○社・○○○○・XXX-XX-XXX\n（整理番号１番の肥料散布機のけん引用）"]
[null,null,"既に所有している同種機械の台数",null,{"v":0,"d":"0 "},"台"]
[]
["２．成果目標面積"]
[]
[null,null,"項目",null,"値","単位","説明"]
[null,null,"成果目標の目標年度における国内資源由来肥料の施用面積","（１）",{"v":80,"d":"80.0"},"ha","事業実施計画書第１の５（２）の目標値に記載した施用面積を記入。"]
[]
["３．導入機の負担可能面積"]
[]
[null,"１）機械等の作業能力"]
[null,null,"項目",null,"値","単位","説明"]
[null,null,"作業幅","（２）",{"v":4,"d":"4.00"},"m","カタログ等を基に散布機の散布幅を記入。なお、根拠資料を添付する。"]
[null,null,"作業速度","（３）",{"v":5,"d":"5.00"},"km/時","ほ場や作物等の条件、オペレーターの技術水準等を踏まえ、散布機の作業速度を記入。なお、算出過程を示した資料を添付する。"]
[null,null,"理論作業量","（４）",{"$f":"E21*E22/10","v":{"v":2,"d":"2.00"}},"ha/時","（２）×（３）÷10"]
[null,null,"ほ場作業効率","（５）",{"v":65,"d":"65.00"},"％","ほ場内の作業時間に対する機械の稼働時間の割合（ほ場内の作業時間から旋回や燃料補給等、ほ場内で発生するロス時間を除いた割合）を記入。なお、根拠資料として、○○を添付する。"]
[null,null,"機械等の作業能力","（６）",{"$f":"E23*E24/100","v":{"v":1.3,"d":"1.30"}},"ha/時","（４）×（５）"]
[null,"２）作業可能時間"]
[null,null,"項目",null,"値","単位","説明"]
[null,null,"1日当たりの作業時間","（７）",{"v":7,"d":"7.00"},"時/日","算定方法を添付する。"]
[null,null,"実作業率","（８）",{"v":55,"d":"55.00"},"%","１日当たり作業時間に対するほ場内作業時間の割合（１日当たりの作業時間から機械の装着や調整に係る時間、ほ場への移動時間等のほ場外作業時間を除いた割合）を記入。なお、根拠資料として、○○を添付する。"]
[null,null,"作業可能時間","（９）",{"$f":"E28*E29/100","v":3.85},"時/日","（７）×（８）"]
[null,"３）作業可能日数"]
[null,null,"項目",null,"値","単位","説明"]
[null,null,"作業可能期間","（10）","11/1 ～11/22",null,"導入しようとする肥料散布機による作業可能期間を記入。"]
[null,null,"作業日数","（11）",{"v":22,"d":"22 "},"日","（10）欄の作業可能期間のうち作業ができない日を除いた、実際に作業可能な日数を記入。"]
[null,null,"作業可能日数率","（12）",{"v":70,"d":"70.00"},"％","（11）欄の作業日数に対し、雨天等の影響で国内資源由来肥料等の散布ができない日の割合を記入。"]
[null,null,"作業可能日数","（13）",{"$f":"E34*E35/100","v":{"v":15.4,"d":"15.40"}},"日","（11）×（12）"]
[null,"４）導入機の負担可能面積（＝機械等の作業能力×作業可能時間×作業可能日数）"]
[null,null,"項目",null,"値","単位","説明"]
[null,null,"作業回数","（14）",{"v":1,"d":"1 "},"回"]
[null,null,"導入機の負担可能面積","（15）",{"$f":"E25*E30*E36/E39","v":{"v":77.077,"d":"77.08"}},"ha","（６）×（９）×（13）÷（14）"]
[]
["４．機械等の利用効率（＝｛成果目標面積（ha）／負担可能面積（ha）｝×100）"]
[]
[null,null,"項目",null,"値","単位","説明"]
[null,null,"導入機による機械等の利用効率","（16）",{"$f":"E15/E40*100","v":{"v":103.79231158451938,"d":"103.8"}},"％","（１）÷（15）×100\n機械等の利用効率は概ね100％となり、適正な能力・規模の機械を導入しようとしている。"]

{"sheet":"作成例５","index":5,"n_rows":109,"n_cols":7,"rows_kept":109,"merged":[[6,4,6,5],[7,4,7,5],[8,4,8,6],[36,4,36,5],[50,4,50,6],[51,4,51,6],[66,4,66,5],[78,4,78,6],[79,4,79,6],[94,4,94,5]]}
["機械能力・規模決定根拠"]
[]
["１．基本情報"]
[]
[null,null,"項目",null,"値","単位","説明"]
[null,null,"整理番号",null,{"v":2,"d":"2 "},"番","事業実施計画書別紙5の（15）欄で付した整理番号を記入。"]
[null,null,"機械導入者名",null,"B山C太郎",null,"事業実施計画書別紙5の（１）欄で整理した機械導入者名を記入。"]
[null,null,"導入しようとする機械種類",null,"トラクタ",null,"事業実施計画書別紙5の（９）欄で整理した機械種類名を記入。"]
[null,null,"導入を想定している機械のメーカー・品名・型式等",null,"トラクタ：○○社・○○○○・XXX-XX-XXX\n（整理番号１番の肥料散布機のけん引用）"]
[null,null,"既に所有している同種機械の台数",null,{"v":2,"d":"2 "},"台","トラクタ２台（トラクタ①及び②）"]
[]
["２．成果目標面積"]
[]
[null,null,"項目",null,"値","単位","説明"]
[null,null,"成果目標の目標年度における国内資源由来肥料の施用面積","（１）",{"v":18,"d":"18.0"},"ha","事業実施計画書第１の５（２）の目標値に記載した施用面積を記入。"]
[null,null,"上記面積のうち既存所有機で国内資源由来肥料を施用する面積","（２）",{"v":0,"d":"0.0"},null,"国内資源由来肥料の散布可能期間と化学肥料の散布可能期間が重複しており、既存所有機を用いて国内資源由来肥料の散布ができない。"]
[null,null,"導入機で国内資源由来肥料を施用する面積","（３）",{"$f":"E15-E16","v":{"v":18,"d":"18.0"}},null,"（１）ー（２）"]
[null,null,"所有するトラクタで作業する面積（国内資源由来肥料の散布以外の作業）\n（トラクタ：①）","（４）",{"v":18,"d":"18.0"},"ha","国内資源由来肥料の散布期間中に、既存トラクタにより荒切をしなければならない面積"]
[null,null,"所有するトラクタで作業する面積（国内資源由来肥料の散布以外の作業）\n（トラクタ：②）","（５）",{"v":18,"d":"18.0"},"ha","国内資源由来肥料の散布期間中に、既存トラクタにより代かきをしなければならない面積"]
[]
["３．導入機の負担可能面積"]
[]
[null,"１）機械等の作業能力"]
[null,null,"項目",null,"値","単位","説明"]
[null,null,"作業幅","（６）",{"v":8,"d":"8.00"},"m","カタログ等を基に散布機の散布幅を記入。なお、根拠資料を添付する。"]
[null,null,"作業速度","（７）",{"v":2.5,"d":"2.50"},"km/時","ほ場や作物等の条件、オペレーターの技術水準等を踏まえ、散布機の作業速度を記入。なお、算出過程を示した資料を添付する。"]
[null,null,"理論作業量","（８）",{"$f":"E25*E26/10","v":{"v":2,"d":"2.00"}},"ha/時","（６）×（７）÷10"]
[null,null,"ほ場作業効率","（９）",{"v":55,"d":"55.00"},"％","ほ場内の作業時間に対する機械の稼働時間の割合（ほ場内の作業時間から旋回や燃料補給等、ほ場内で発生するロス時間を除いた割合）を記入。なお、根拠資料として、○○を添付する。"]
[null,null,"機械等の作業能力","（10）",{"$f":"E27*E28/100","v":{"v":1.1,"d":"1.10"}},"ha/時","（８）×（９）"]
[null,"２）作業可能時間"]
[null,null,"項目",null,"値","単位","説明"]
[null,null,"1日当たりの作業時間","（11）",{"v":6,"d":"6.00"},"時/日","算定方法を添付する。"]
[null,null,"実作業率","（12）",{"v":55,"d":"55.00"},"%","１日当たり作業時間に対するほ場内作業時間の割合（１日当たりの作業時間から機械の装着や調整に係る時間、ほ場への移動時間等のほ場外作業時間を除いた割合）を記入。なお、根拠資料として、○○を添付する。"]
[null,null,"作業可能時間","（13）",{"$f":"E32*E33/100","v":{"v":3.3,"d":"3.30"}},"時/日","（11）×（12）"]
[null,"３）作業可能日数"]
[null,null,"項目",null,"値","単位","説明"]
[null,null,"作業可能期間","（14）","4/12～4/18",null,"導入しようとする肥料散布機による作業可能期間を記入。"]
[null,null,"作業日数","（15）",{"v":7,"d":"7 "},"日","（14）欄の作業可能期間のうち作業ができない日を除いた、実際に作業可能な日数を記入。"]
[null,null,"作業可能日数率","（16）",{"v":70,"d":"70.00"},"％","（15）欄の作業日数に対し、雨天等の影響で国内資源由来肥料等の散布ができない日の割合を記入。"]
[null,null,"作業可能日数","（17）",{"$f":"E38*E39/100","v":4.9},"日","（15）×（16）"]
[null,"４）導入機の負担可能面積（＝機械等の作業能力×作業可能時間×作業可能日数）"]
[null,null,"項目",null,"値","単位","説明"]
[null,null,"作業回数","（18）",{"v":1,"d":"1 "},"回"]
[null,null,"導入機の負担可能面積","（19）",{"$f":"E29*E34*E40/E43","v":{"v":17.787,"d":"17.79"}},"ha","（10）×（13）×（17）÷（18）"]
[]
["４．既存所有機の負担可能面積"]
[]
[null,"既に所有している機械①の基本情報"]
[]
[null,null,"項目",null,"値","単位","説明"]
[null,null,"既に所有している機械のメーカー・品名・型式等",null,"トラクタ①：○○社・○○○○・XXX-XX-XXX\n（ロータリ：○○社・○○○○・XXX-XX-XXXのけん引用）"]
[null,null,"用途",null,"荒切"]
[null,"１ー①）機械等の作業能力"]
[null,null,"項目",null,"値","単位","説明"]
[null,null,"作業幅","（20）",{"v":2.4,"d":"2.40"},"m","カタログ等を基にロータリーの作業幅を記入。なお、根拠資料を添付する。"]
[null,null,"作業速度","（21）",{"v":2.3,"d":"2.30"},"km/時","ほ場や作物等の条件、オペレーターの技術水準等を踏まえ、ロータリーの作業速度を記入。なお、算出過程を示した資料を添付する。"]
[null,null,"理論作業量","（22）",{"$f":"E55*E56/10","v":{"v":0.5519999999999999,"d":"0.55"}},"ha/時","（20）×（21）÷10"]
[null,null,"ほ場作業効率","（23）",{"v":80,"d":"80.00"},"％","ほ場内の作業時間に対する機械の稼働時間の割合（ほ場内の作業時間から旋回や燃料補給等、ほ場内で発生するロス時間を除いた割合）を記入。なお、根拠資料として、○○を添付する。"]
[null,null,"機械等の作業能力","（24）",{"$f":"E57*E58/100","v":{"v":0.4416,"d":"0.44"}},"ha/時","（22）×（23）"]
[null,"２ー①）作業可能時間"]
[null,null,"項目",null,"値","単位","説明"]
[null,null,"1日当たりの作業時間","（25）",{"v":6,"d":"6.00"},"時/日","算定方法を添付する。"]
[null,null,"実作業率","（26）",{"v":55,"d":"55.00"},"%","１日当たり作業時間に対するほ場内作業時間の割合（１日当たりの作業時間から機械の装着や調整に係る時間、ほ場への移動時間等のほ場外作業時間を除いた割合）を記入。なお、根拠資料として、○○を添付する。"]
[null,null,"作業可能時間","（27）",{"$f":"E62*E63/100","v":{"v":3.3,"d":"3.30"}},"時/日","（25）×（26）"]
[null,"３ー①）作業可能日数"]
[null,null,"項目",null,"値","単位","説明"]
[null,null,"作業可能期間","（28）","4/12～4/28"]
[null,null,"作業日数","（29）",{"v":17,"d":"17 "},"日","（28）欄の作業可能期間のうち作業ができない日を除いた、実際に作業可能な日数を記入。"]
[null,null,"作業可能日数率","（30）",{"v":70,"d":"70.00"},"％","（29）欄の作業日数に対し、雨天等の影響で国内資源由来肥料等の散布ができない日の割合を記入。"]
[null,null,"作業可能日数","（31）",{"$f":"E68*E69/100","v":{"v":11.9,"d":"11.90"}},"日","（29）×（30）"]
[null,"４ー①）既存所有機の負担可能面積（＝機械等の作業能力×作業可能時間×作業可能日数）"]
[null,null,"項目",null,"値","単位","説明"]
[null,null,"作業回数","（32）",{"v":1,"d":"1 "},"回"]
[null,null,"既存所有機の負担可能面積","（33）",{"$f":"E59*E64*E70/E73","v":{"v":17.341632,"d":"17.34"}},"ha","（24）×（27）×（31）÷（32）"]
[]
[null,"既に所有している機械②の基本情報"]
[]
[null,null,"項目",null,"値","単位","説明"]
[null,null,"既に所有している機械のメーカー・品名・型式等",null,"トラクタ②：○○社・○○○○・XXX-XX-XXX\n（ハロー：○○社・○○○○・XXX-XX-XXXのけん引用）"]
[null,null,"用途",null,"代かき"]
[null,"１ー②）機械等の作業能力"]
[null,null,"項目",null,"値","単位","説明"]
[null,null,"作業幅","（34）",{"v":2.5,"d":"2.50"},"m","カタログ等を基にハローの作業幅を記入。なお、根拠資料を添付する。"]
[null,null,"作業速度","（35）",{"v":2.3,"d":"2.30"},"km/時","ほ場や作物等の条件、オペレーターの技術水準等を踏まえ、ハローの作業速度を記入。なお、算出過程を示した資料を添付する。"]
[null,null,"理論作業量","（36）",{"$f":"E83*E84/10","v":{"v":0.575,"d":"0.58"}},"ha/時","（34）×（35）÷10"]
[null,null,"ほ場作業効率","（37）",{"v":80,"d":"80.00"},"％","ほ場内の作業時間に対する機械の稼働時間の割合（ほ場内の作業時間から旋回や燃料補給等、ほ場内で発生するロス時間を除いた割合）を記入。なお、根拠資料として、○○を添付する。"]
[null,null,"機械等の作業能力","（38）",{"$f":"E85*E86/100","v":0.46},"ha/時","（36）×（37）"]
[null,"２ー②）作業可能時間"]
[null,null,"項目",null,"値","単位","説明"]
[null,null,"1日当たりの作業時間","（39）",{"v":6,"d":"6.00"},"時/日","算定方法を添付する。"]
[null,null,"実作業率","（40）",{"v":55,"d":"55.00"},"%","１日当たり作業時間に対するほ場内作業時間の割合（１日当たりの作業時間から機械の装着や調整に係る時間、ほ場への移動時間等のほ場外作業時間を除いた割合）を記入。なお、根拠資料として、○○を添付する。"]
[null,null,"作業可能時間","（41）",{"$f":"E90*E91/100","v":{"v":3.3,"d":"3.30"}},"時/日","（39）×（40）"]
[null,"３ー②）作業可能日数"]
[null,null,"項目",null,"値","単位","説明"]
[null,null,"作業可能期間","（42）","4/12～4/28"]
[null,null,"作業日数","（43）",{"v":17,"d":"17 "},"日","（42）欄の作業可能期間のうち作業ができない日を除いた、実際に作業可能な日数を記入。"]
[null,null,"作業可能日数率","（44）",{"v":70,"d":"70.00"},"％","（43）欄の作業日数に対し、雨天等の影響で国内資源由来肥料等の散布ができない日の割合を記入。"]
[null,null,"作業可能日数","（45）",{"$f":"E96*E97/100","v":{"v":11.9,"d":"11.90"}},"日","（43）×（44）"]
[null,"４ー②）既存所有機の負担可能面積（＝機械等の作業能力×作業可能時間×作業可能日数）"]
[null,null,"項目",null,"値","単位","説明"]
[null,null,"作業回数","（46）",{"v":1,"d":"1 "},"回"]
[null,null,"既存所有機の負担可能面積","（47）",{"$f":"E87*E92*E98/E101","v":{"v":18.0642,"d":"18.06"}},"ha","（38）×（41）×（45）÷（46）"]
[]
["５．機械等の利用効率（＝｛成果目標面積（ha）／負担可能面積（ha）｝×100）"]
[]
[null,null,"項目",null,"値","単位","説明"]
[null,null,"導入機による機械等の利用効率","（48）",{"$f":"E15/E44*100","v":{"v":101.1975037949064,"d":"101.2"}},"％","（１）÷（19）×100\n機械等の利用効率は概ね100％となり、適正な能力・規模の機械を導入しようとしている。"]
[null,null,"既存トラクタ①の利用効率（既存トラクタを荒切作業に使用）","（49）",{"$f":"E18/E74*100","v":{"v":103.79645929518051,"d":"103.8"}},"％","（４）÷（33）×100\n荒切作業における機械等の利用効率は概ね100％となり、国内資源由来肥料の散布期間、所有するトラクタは国内資源由来肥料の散布に使用できない。"]
[null,null,"既存トラクタ②の利用効率（既存トラクタを代かき作業に使用）","（50）",{"$f":"E19/E102*100","v":{"v":99.6446009233733,"d":"99.6"}},"％","（５）÷（47）×100\n代かき作業における機械等の利用効率は概ね100％となり、国内資源由来肥料の散布期間、所有するトラクタは国内資源由来肥料の散布に使用できない。"]

{"sheet":"作成例６","index":6,"n_rows":107,"n_cols":7,"rows_kept":107,"merged":[[6,4,6,5],[7,4,7,5],[8,4,8,6],[35,4,35,5],[48,4,48,6],[49,4,49,6],[67,4,67,5],[92,4,92,5]]}
["機械能力・規模決定根拠"]
[]
["１．基本情報"]
[]
[null,null,"項目",null,"値","単位","説明"]
[null,null,"整理番号",null,{"v":2,"d":"2 "},"番","事業実施計画書別紙5の（15）欄で付した整理番号を記入。"]
[null,null,"機械導入者名",null,"B山C太郎",null,"事業実施計画書別紙5の（１）欄で整理した機械導入者名を記入。"]
[null,null,"導入しようとする機械種類",null,"トラクタ",null,"事業実施計画書別紙5の（９）欄で整理した機械種類名を記入。"]
[null,null,"導入を想定している機械のメーカー・品名・型式等",null,"トラクタ：○○社・○○○○・XXX-XX-XXX\n（整理番号１番の肥料散布機のけん引用）"]
[null,null,"既に所有している同種機械の台数",null,{"v":2,"d":"2 "},"台","トラクタ１台"]
[]
["２．成果目標面積"]
[]
[null,null,"項目",null,"値","単位","説明"]
[null,null,"成果目標の目標年度における国内資源由来肥料の施用面積","（１）",{"v":70,"d":"70.0"},"ha","事業実施計画書第１の５（２）の目標値に記載した施用面積を記入。"]
[null,null,"上記面積のうち既存所有機で施用する面積","（２）",{"$f":"E75","v":{"v":10.005187500000002,"d":"10.0"}},"ha","（32）"]
[null,null,"導入機で施用する面積","（３）",{"$f":"E15-E16","v":{"v":59.994812499999995,"d":"60.0"}},"ha","（１）ー（２）"]
[null,null,"既存所有機で作業する面積（国内資源由来肥料の散布以外の作業）","（４）",{"v":10,"d":"10.0"},"ha","国内資源由来肥料の散布期間中に、既存所有機により化学肥料を散布しなければならない面積"]
[]
["３．導入機の負担可能面積"]
[]
[null,"１）機械等の作業能力"]
[null,null,"項目",null,"値","単位","説明"]
[null,null,"作業幅","（５）",{"v":8,"d":"8.00"},"m","カタログ等を基に散布機の散布幅を記入。なお、根拠資料を添付する。"]
[null,null,"作業速度","（６）",{"v":3.5,"d":"3.50"},"km/時","ほ場や作物等の条件、オペレーターの技術水準等を踏まえ、散布機の作業速度を記入。なお、算出過程を示した資料を添付する。"]
[null,null,"理論作業量","（７）",{"$f":"E24*E25/10","v":{"v":2.8,"d":"2.80"}},"ha/時","（５）×（６）÷10"]
[null,null,"ほ場作業効率","（８）",{"v":55,"d":"55.00"},"％","ほ場内の作業時間に対する機械の稼働時間の割合（ほ場内の作業時間から旋回や燃料補給等、ほ場内で発生するロス時間を除いた割合）を記入。なお、根拠資料として、○○を添付する。"]
[null,null,"機械等の作業能力","（９）",{"$f":"E26*E27/100","v":1.54},"ha/時","（７）×（８）"]
[null,"２）作業可能時間"]
[null,null,"項目",null,"値","単位","説明"]
[null,null,"1日当たりの作業時間","（10）",{"v":5,"d":"5.00"},"時/日","算定方法を添付する。"]
[null,null,"実作業率","（11）",{"v":55,"d":"55.00"},"%","１日当たり作業時間に対するほ場内作業時間の割合（１日当たりの作業時間から機械の装着や調整に係る時間、ほ場への移動時間等のほ場外作業時間を除いた割合）を記入。なお、根拠資料として、○○を添付する。"]
[null,null,"作業可能時間","（12）",{"$f":"E31*E32/100","v":2.75},"時/日","（10）×（11）"]
[null,"３）作業可能日数"]
[null,null,"項目",null,"値","単位","説明"]
[null,null,"作業可能期間","（13）","4/1～4/20"]
[null,null,"作業日数","（14）",{"v":20,"d":"20 "},"日","（13）欄の作業可能期間のうち作業ができない日を除いた、実際に作業可能な日数を記入。"]
[null,null,"作業可能日数率","（15）",{"v":70,"d":"70.00"},"％","（14）欄の作業日数に対し、雨天等の影響で国内資源由来肥料等の散布ができない日の割合を記入。"]
[null,null,"作業可能日数","（16）",{"$f":"E37*E38/100","v":{"v":14,"d":"14.00"}},"日","（14）×（15）"]
[null,"４）導入機の負担可能面積（＝機械等の作業能力×作業可能時間×作業可能日数）"]
[null,null,"項目",null,"値","単位","説明"]
[null,null,"作業回数","（17）",{"v":1,"d":"1 "},"回"]
[null,null,"導入機の負担可能面積","（18）",{"$f":"E28*E33*E39/E42","v":{"v":59.290000000000006,"d":"59.29"}},"ha","（９）×（12）×（16）÷（17）"]
[]
["４．既存所有機の負担可能面積"]
[]
[null,"既に所有している機械の基本情報"]
[null,null,"項目",null,"値","単位","説明"]
[null,null,"既に所有している機械のメーカー・品名・型式等",null,"トラクタ：○○社・○○○○・XXX-XX-XXX\n（整理番号１番の肥料散布機及び既に所有している肥料散布機：○○社・○○○○・XXX-XX-XXXのけん引用）"]
[null,null,"用途",null,"①国内資源由来肥料の散布、②化学肥料の散布"]
[]
[null,"用途①　国内資源由来肥料の散布"]
[]
[null,"１ー①）機械等の作業能力"]
[null,null,"項目",null,"値","単位","説明"]
[null,null,"作業幅","（19）",{"v":4.5,"d":"4.50"},"m","カタログ等を基に散布機の散布幅を記入。なお、根拠資料を添付する。"]
[null,null,"作業速度","（20）",{"v":2.1,"d":"2.10"},"km/時","ほ場や作物等の条件、オペレーターの技術水準等を踏まえ、散布機の作業速度を記入。なお、算出過程を示した資料を添付する。"]
[null,null,"理論作業量","（21）",{"$f":"E56*E57/10","v":{"v":0.9450000000000001,"d":"0.95"}},"ha/時","（19）×（20）÷10"]
[null,null,"ほ場作業効率","（22）",{"v":55,"d":"55.00"},"％","ほ場内の作業時間に対する機械の稼働時間の割合（ほ場内の作業時間から旋回や燃料補給等、ほ場内で発生するロス時間を除いた割合）を記入。なお、根拠資料として、○○を添付する。"]
[null,null,"機械等の作業能力","（23）",{"$f":"E58*E59/100","v":{"v":0.51975,"d":"0.52"}},"ha/時","（21）×（22）"]
[null,"２ー①）作業可能時間"]
[null,null,"項目",null,"値","単位","説明"]
[null,null,"1日当たりの作業時間","（24）",{"v":5,"d":"5.00"},"時/日","算定方法を添付する。"]
[null,null,"実作業率","（25）",{"v":55,"d":"55.00"},"%","１日当たり作業時間に対するほ場内作業時間の割合（１日当たりの作業時間から機械の装着や調整に係る時間、ほ場への移動時間等のほ場外作業時間を除いた割合）を記入。なお、根拠資料として、○○を添付する。"]
[null,null,"作業可能時間","（26）",{"$f":"E63*E64/100","v":2.75},"時/日","（24）×（25）"]
[null,"３ー①）作業可能日数"]
[null,null,"項目",null,"値","単位","説明"]
[null,null,"作業可能期間","（27）","4/1～4/10",null,"作業日数20日のうち、10日は国内資源由来肥料の散布。"]
[null,null,"作業日数","（28）",{"v":10,"d":"10 "},"日","（27）欄の作業可能期間のうち作業ができない日を除いた、実際に作業可能な日数を記入。"]
[null,null,"作業可能日数率","（29）",{"v":70,"d":"70.00"},"％","（28）欄の作業日数に対し、雨天等の影響で国内資源由来肥料等の散布ができない日の割合を記入。"]
[null,null,"作業可能日数","（30）",{"$f":"E69*E70/100","v":{"v":7,"d":"7.00"}},"日","（28）×（29）"]
[null,"４ー①）既存所有機の負担可能面積（＝機械等の作業能力×作業可能時間×作業可能日数）"]
[null,null,"項目",null,"値","単位","説明"]
[null,null,"作業回数","（31）",{"v":1,"d":"1 "},"回"]
[null,null,"既存所有機の負担可能面積","（32）",{"$f":"E60*E65*E71/E74","v":{"v":10.005187500000002,"d":"10.01"}},"ha","（23）×（26）×（30）÷（31）"]
[]
[null,"用途②　化学肥料の散布"]
[]
[null,"１ー②）機械等の作業能力"]
[null,null,"項目",null,"値","単位","説明"]
[null,null,"作業幅","（33）",{"v":4.5,"d":"4.50"},"m","カタログ等を基に散布機の散布幅を記入。なお、根拠資料を添付する。"]
[null,null,"作業速度","（34）",{"v":2.1,"d":"2.10"},"km/時","ほ場や作物等の条件、オペレーターの技術水準等を踏まえ、散布機の作業速度を記入。なお、算出過程を示した資料を添付する。"]
[null,null,"理論作業量","（35）",{"$f":"E81*E82/10","v":{"v":0.9450000000000001,"d":"0.95"}},"ha/時","（33）×（34）÷10"]
[null,null,"ほ場作業効率","（36）",{"v":55,"d":"55.00"},"％","ほ場内の作業時間に対する機械の稼働時間の割合（ほ場内の作業時間から旋回や燃料補給等、ほ場内で発生するロス時間を除いた割合）を記入。なお、根拠資料として、○○を添付する。"]
[null,null,"機械等の作業能力","（37）",{"$f":"E83*E84/100","v":{"v":0.51975,"d":"0.52"}},"ha/時","（35）×（36）"]
[null,"２ー②）作業可能時間"]
[null,null,"項目",null,"値","単位","説明"]
[null,null,"1日当たりの作業時間","（38）",{"v":5,"d":"5.00"},"時/日","算定方法を添付する。"]
[null,null,"実作業率","（39）",{"v":55,"d":"55.00"},"%","１日当たり作業時間に対するほ場内作業時間の割合（１日当たりの作業時間から機械の装着や調整に係る時間、ほ場への移動時間等のほ場外作業時間を除いた割合）を記入。なお、根拠資料として、○○を添付する。"]
[null,null,"作業可能時間","（40）",{"$f":"E88*E89/100","v":2.75},"時/日","（38）×（39）"]
[null,"３ー②）作業可能日数"]
[null,null,"項目",null,"値","単位","説明"]
[null,null,"作業可能期間","（41）","4/11～4/20",null,"作業日数20日のうち、10日はキャベツの化学肥料の散布。"]
[null,null,"作業日数","（42）",{"v":10,"d":"10 "},"日","（41）欄の作業可能期間のうち作業ができない日を除いた、実際に作業可能な日数を記入。"]
[null,null,"作業可能日数率","（43）",{"v":70,"d":"70.00"},"％","（42）欄の作業日数に対し、雨天等の影響で国内資源由来肥料等の散布ができない日の割合を記入。"]
[null,null,"作業可能日数","（44）",{"$f":"E94*E95/100","v":{"v":7,"d":"7.00"}},"日","（42）×（43）"]
[null,"４ー②）既存所有機の負担可能面積（＝機械等の作業能力×作業可能時間×作業可能日数）"]
[null,null,"項目",null,"値","単位","説明"]
[null,null,"作業回数","（45）",{"v":1,"d":"1 "},"回"]
[null,null,"既存所有機の負担可能面積","（46）",{"$f":"E85*E90*E96/E99","v":{"v":10.005187500000002,"d":"10.01"}},"ha","（37）×（40）×（44）÷（45）"]
[]
["５．機械等の利用効率（＝｛成果目標面積（ha）／負担可能面積（ha）｝×100）"]
[]
[null,null,"項目",null,"値","単位","説明"]
[null,null,"既存所有機を国内資源由来肥料の散布に供した時の機械等の利用効率","（47）",{"$f":"E15/E16*100","v":{"v":699.6370632734269,"d":"699.6"}},"％","（１）÷（２）×100\n機械等の利用効率は100％を大きく上回ることから、既存所有機を活用しても、成果目標面積全てを散布することができない。"]
[null,null,"導入機による機械等の利用効率","（48）",{"$f":"E17/E43*100","v":{"v":101.18875442739078,"d":"101.2"}},"％","（３）÷（18）×100\n機械等の利用効率は概ね100％となり、適正な能力・規模の機械を導入しようとしている。"]
[null,null,"既存所有機を化学肥料の散布に供した時の機械等の利用効率","（49）",{"$f":"E18/E100*100","v":{"v":99.94815189620383,"d":"99.9"}},"％","（４）÷（46）×100\n化学肥料の散布における機械等の利用効率は概ね100％となり、国内資源由来肥料の散布期間20日のうち、10日は既存所有機を国内資源由来肥料の散布に活用することができない。"]